fUSD/lending_fUSD_20240404
["ID","MTS","AMOUNT","RATE_DAILY","PERIOD"]
[321490985,1712239869109,-1884.93,0.00049315,120]
[321490986,1712239869119,-1660.69,0.00049315,120]
[321490987,1712239869128,-685.5,0.00049315,120]
[321490988,1712239869137,-2919.17,0.00049315,120]
[321490989,1712239869146,-3925.0,0.00049315,120]
[321490990,1712239869156,-500.0,0.00049315,120]
[321490991,1712239869165,-3322.98,0.00049315,120]
[321490992,1712239869174,-500.0,0.00049315,120]
[321490993,1712239869184,-6414.14,0.00049315,120]
[321490994,1712239869193,-6557.34,0.00049315,120]
[321490995,1712239869203,-1281.22,0.00049315,120]
[321490996,1712239869212,-500.0,0.00049315,120]
[321490997,1712239869221,-692.13,0.00049315,120]
[321490998,1712239869230,-503.79454178,0.00049315,120]
[321490999,1712239869240,-4579.31,0.00049315,120]
[321491000,1712239869249,-500.0,0.00049315,120]
[321491001,1712239869262,-500.0,0.00049315,120]
[321491002,1712239869271,-501.10770543,0.00049315,120]
[321491003,1712239869281,-8315.86,0.00049315,30]
[321491004,1712239869290,-855.94,0.00049315,120]
[321491005,1712239869298,-500.0,0.00049315,120]
[321491006,1712239869307,-510.04495126,0.00049315,120]
[321491007,1712239869317,-7598.42,0.00049315,120]
[321491008,1712239869326,-500.0,0.00049315,120]
[321491009,1712239869336,-1182.66,0.00049315,120]
[321491010,1712239869344,-7598.42,0.00049315,120]
[321491011,1712239869354,-511.30434888,0.00049315,120]
[321491012,1712239869363,-7598.42,0.00049315,120]
[321491013,1712239869372,-7598.42,0.00049315,120]
[321491014,1712239869381,-957.21,0.00049315,120]
[321491015,1712239869390,-7598.42,0.00049315,120]
[321491016,1712239869400,-3832.9,0.00049315,120]
[321491017,1712239869409,-7598.42,0.00049315,120]
[321491018,1712239869418,-7598.42,0.00049315,120]
[321491019,1712239869427,-500.0,0.00049315,120]
[321491020,1712239869437,-7598.42,0.00049315,120]
[321491021,1712239869447,-7598.42,0.00049315,120]
[321491022,1712239869456,-500.0,0.00049315,120]
[321491023,1712239869465,-500.0,0.00049315,120]
[321491024,1712239869475,-7598.42,0.00049315,120]
[321491025,1712239869484,-7598.42,0.00049315,120]
[321491026,1712239869493,-1906.1,0.00049315,120]
[321491027,1712239869502,-7598.42,0.00049315,120]
[321491028,1712239869515,-7598.42,0.00049315,120]
[321491029,1712239869524,-7598.42,0.00049315,120]
[321491030,1712239869533,-500.0,0.00049315,120]
[321491031,1712239869542,-7598.42,0.00049315,120]
[321491032,1712239869551,-500.0,0.00049315,120]
[321491033,1712239869561,-7598.42,0.00049315,120]
[321491034,1712239869570,-500.0,0.00049315,120]
[321491035,1712239869580,-500.0,0.00049315,120]
[321491036,1712239869590,-7598.42,0.00049315,120]
[321491037,1712239869599,-7598.42,0.00049315,120]
[321491038,1712239869608,-7598.42,0.00049315,120]
[321491039,1712239869618,-7598.42,0.00049315,120]
[321491040,1712239869627,-7598.42,0.00049315,120]
[321491041,1712239869637,-7598.42,0.00049315,120]
[321491042,1712239869647,-7598.42,0.00049315,120]
[321491043,1712239869659,-7598.48977531,0.00049315,120]
[321491044,1712239869669,-5534.61,0.00049315,120]
[321491045,1712239869679,-809.03,0.00049315,120]
[321491046,1712239869689,-500.0,0.00049315,120]
[321491047,1712239869699,-500.0,0.00049315,120]
[321491048,1712239869709,-4504.73,0.00049315,120]
[321491049,1712239869718,-441.83957724,0.00049315,120]
[321491050,1712239869727,-3337.76,0.00049315,120]
[321491051,1712239869736,-500.0,0.00049315,120]
[321491052,1712239869747,-500.0,0.00049315,120]
[321491053,1712239869757,-559.49932306,0.00049315,120]
[321491054,1712239869766,-500.0,0.00049315,120]
[321491055,1712239869775,-500.0,0.00049315,120]
[321491056,1712239869784,-5135.43,0.00049315,120]
[321491057,1712239869793,-2269.81,0.00049315,120]
[321491058,1712239869802,-2780.5,0.00049315,120]
[321491059,1712239869812,-336.58284987,0.00049315,120]
[321491060,1712239869821,-500.0,0.00049315,120]
[321491061,1712239869830,-1584.14,0.00049315,120]
[321491062,1712239869840,-16062.0,0.00049315,120]
[321491063,1712239869848,-500.0,0.00049315,120]
[321491064,1712239869858,-500.0,0.00049315,120]
[321491065,1712239869867,-509.75260859,0.00049315,120]
[321491066,1712239869876,-1466.61,0.00049315,120]
[321491067,1712239869885,-500.0,0.00049315,120]
[321491068,1712239869895,-500.0,0.00049315,120]
[321491069,1712239869904,-1891.65,0.00049315,120]
[321491070,1712239869914,-7448.15,0.00049315,120]
[321491071,1712239869923,-500.0,0.00049315,120]
[321491072,1712239869933,-500.0,0.00049315,2]
[321491073,1712239869942,-500.0,0.00049315,2]
[321491074,1712239869951,-3177.55,0.00049315,120]
[321491075,1712239869961,-500.0,0.00049315,2]
[321491076,1712239869970,-534.96999093,0.00049315,120]
[321491077,1712239869979,-500.0,0.00049315,2]
[321491078,1712239869988,-5507.87,0.00049315,120]
[321491079,1712239869997,-500.0,0.00049315,2]
[321491080,1712239870009,-500.0,0.00049315,120]
[321491081,1712239870018,-500.0,0.00049315,2]
[321491082,1712239870027,-500.0,0.00049315,2]
[321491083,1712239870036,-500.0,0.00049315,2]
[321491084,1712239870046,-500.0,0.00049315,2]
[321491085,1712239870055,-500.0,0.00049315,2]
[321491086,1712239870065,-507.26687169,0.00049315,2]
[321491087,1712239870074,-2530.8,0.00049315,120]
[321491088,1712239870084,-21865.33,0.00049315,120]
[321491089,1712239870095,-500.0,0.00049315,120]
[321491090,1712239870105,-509.61,0.00049315,120]
[321491091,1712239870115,-500.0,0.00049315,120]
[321491092,1712239870125,-500.0,0.00049315,120]
[321491093,1712239870137,-941.92,0.00049315,120]
[321491094,1712239870148,-1764.44,0.00049315,120]
[321491095,1712239870159,-500.0,0.00049315,120]
[321491096,1712239870168,-500.0,0.00049315,120]
[321491097,1712239870178,-20002.18,0.00049315,120]
[321491098,1712239870187,-10125.67,0.00049315,120]
[321491099,1712239870197,-506.07598041,0.00049315,120]
[321491100,1712239870207,-3535.79,0.00049315,120]
[321491101,1712239870216,-500.0,0.00049315,120]
[321491102,1712239870226,-430.65531202,0.00049315,120]
[321491103,1712239870236,-500.0,0.00049315,120]
[321491104,1712239870246,-5076.66,0.00049315,120]
[321491105,1712239870257,-5089.55,0.00049315,120]
[321491106,1712239870267,-2301.14,0.00049315,60]
[321491107,1712239870277,-500.0,0.00049315,120]
[321491108,1712239870288,-915.54,0.00049315,120]
[321491109,1712239870299,-2279.73,0.00049315,120]
[321491110,1712239870309,-974.98,0.00049315,120]
[321491111,1712239870318,-500.0,0.00049315,120]
[321491112,1712239870329,-44292.34,0.00049315,120]
[321491113,1712239870339,-4065.29,0.00049315,120]
[321491114,1712239870350,-643.71,0.00049315,120]
[321491115,1712239870359,-514.0628798,0.00049315,120]
[321491116,1712239870370,-500.0,0.00049315,120]
[321491117,1712239870379,-2898.84,0.00049315,120]
[321491118,1712239870389,-500.0,0.00049315,120]
[321491119,1712239870398,-500.0,0.00049315,120]
[321491120,1712239870407,-890.34,0.00049315,120]
[321491121,1712239870418,-3262.94,0.00049315,120]
[321491122,1712239870427,-500.0,0.00049315,120]
[321491123,1712239870436,-3207.73,0.00049315,120]
[321491124,1712239870446,-500.0,0.00049315,120]
[321491125,1712239870456,-500.73087838,0.00049315,120]
[321491126,1712239870466,-500.0,0.00049315,120]
[321491127,1712239870476,-590.99,0.00049315,120]
[321491128,1712239870485,-500.0,0.00049315,120]
[321491129,1712239870496,-8597.99,0.00049315,120]
[321491130,1712239870507,-510.01324328,0.00049315,120]
[321491131,1712239870518,-500.0,0.00049315,120]
[321491132,1712239870528,-500.0,0.00049315,120]
[321491133,1712239870538,-504.19960986,0.00049315,120]
[321491134,1712239870549,-2137.11,0.00049315,120]
[321491135,1712239870558,-2440.25,0.00049315,120]
[321491136,1712239870568,-2088.88,0.00049315,120]
[321491137,1712239870578,-500.0,0.00049315,120]
[321491138,1712239870587,-930.58,0.00049315,120]
[321491139,1712239870597,-3836.77,0.00049315,120]
[321491140,1712239870606,-500.0,0.00049315,120]
[321491141,1712239870616,-1186.21,0.00049315,120]
[321491142,1712239870626,-2466.43,0.00049315,120]
[321491143,1712239870635,-1906.61,0.00049315,120]
[321491144,1712239870645,-500.0,0.00049315,120]
[321491145,1712239870657,-516.54005701,0.00049315,120]
[321491146,1712239870668,-500.0,0.00049315,120]
[321491147,1712239870678,-500.0,0.00049315,120]
[321491148,1712239870688,-500.0,0.00049315,120]
[321491149,1712239870699,-515.30184957,0.00049315,120]
[321491150,1712239870709,-2455.03,0.00049315,120]
[321491151,1712239870720,-500.0,0.00049315,120]
[321491152,1712239870730,-1216.2,0.00049315,120]
[321491153,1712239870741,-941.13,0.00049315,120]
[321491154,1712239870752,-500.0,0.00049315,120]
[321491155,1712239870764,-500.0,0.00049315,120]
[321491156,1712239870774,-2066.16,0.00049315,120]
[321491157,1712239870784,-500.0,0.00049315,120]
[321491158,1712239870793,-2102.45,0.00049315,120]
[321491159,1712239870804,-2773.94,0.00049315,120]
[321491160,1712239870814,-1344.39,0.00049315,120]
[321491161,1712239870824,-1340.73,0.00049315,120]
[321491162,1712239870834,-500.0,0.00049315,120]
[321491163,1712239870844,-515.02158542,0.00049315,120]
[321491164,1712239870854,-500.74457924,0.00049315,120]
[321491165,1712239870863,-500.0,0.00049315,120]
[321491166,1712239870873,-353.12616233,0.00049315,2]
[321491167,1712239870883,-502.30111942,0.00049315,2]
[321491168,1712239870894,-500.0,0.00049315,120]
[321491169,1712239870904,-1798.22,0.00049315,7]
[321491170,1712239870914,-999.69,0.00049315,120]
[321491171,1712239870924,-3069.09,0.00049315,120]
[321491172,1712239870934,-1577.63,0.00049315,120]
[321491173,1712239870944,-3032.49,0.00049315,120]
[321491174,1712239870954,-1197.66,0.00049315,120]
[321491175,1712239870965,-500.0,0.00049315,120]
[321491176,1712239870976,-499.5486866,0.00049315,120]
[321491177,1712239870985,-890.92,0.00049315,120]
[321491178,1712239870995,-500.0,0.00049315,120]
[321491179,1712239871007,-500.0,0.00049315,120]
[321491180,1712239871016,-500.0,0.00049315,120]
[321491181,1712239871026,-500.0,0.00049315,120]
[321491182,1712239871035,-151.0,0.00049315,120]
[321491183,1712239871044,-151.0,0.00049315,120]
[321491184,1712239871054,-184.124515,0.00049315,120]
[321491185,1712239871063,-151.0,0.00049315,120]
[321491186,1712239871072,-151.0,0.00049315,120]
[321491187,1712239871082,-151.0,0.00049315,120]
[321491188,1712239871091,-153.253207,0.00049315,120]
[321491189,1712239871101,-151.0,0.00049315,30]
[321491190,1712239871110,-151.0,0.00049315,30]
[321491191,1712239871119,-151.0,0.00049315,30]
[321491192,1712239871129,-151.0,0.00049315,120]
[321491193,1712239871138,-151.0,0.00049315,120]
[321491194,1712239871148,-155.996427,0.00049315,120]
[321491195,1712239871157,-151.0,0.00049315,120]
[321491196,1712239871166,-284.318097,0.00049315,120]
[321491197,1712239871176,-151.0,0.00049315,120]
[321491198,1712239871186,-154.306058,0.00049315,120]
[321491199,1712239871196,-151.0,0.00049315,120]
[321491200,1712239871206,-151.0,0.00049315,120]
[321491201,1712239871215,-151.0,0.00049315,120]
[321491202,1712239871225,-198.127703,0.00049315,120]
[321491203,1712239871235,-151.0,0.00049315,120]
[321491204,1712239871245,-151.0,0.00049315,120]
[321491205,1712239871255,-151.0,0.00049315,120]
[321491206,1712239871265,-151.0,0.00049315,120]
[321491207,1712239871274,-151.0,0.00049315,120]
[321491208,1712239871284,-151.0,0.00049315,120]
[321491209,1712239871294,-154.138861,0.00049315,120]
[321491210,1712239871303,-151.0,0.00049315,120]
[321491211,1712239871313,-151.0,0.00049315,120]
[321491212,1712239871322,-151.0,0.00049315,120]
[321491213,1712239871331,-151.0,0.00049315,120]
[321491214,1712239871341,-151.0,0.00049315,120]
[321491215,1712239871351,-154.903266,0.00049315,120]
[321491216,1712239871361,-151.0,0.00049315,120]
[321491217,1712239871371,-151.0,0.00049315,120]
[321491218,1712239871381,-151.0,0.00049315,120]
[321491219,1712239871391,-151.0,0.00049315,120]
[321491220,1712239871401,-151.0,0.00049315,120]
[321491221,1712239871410,-151.0,0.00049315,120]
[321491222,1712239871421,-151.0,0.00049315,120]
[321491223,1712239871430,-151.0,0.00049315,120]
[321491224,1712239871440,-151.0,0.00049315,120]
[321491225,1712239871449,-151.0,0.00049315,120]
[321491226,1712239871460,-151.0,0.00049315,120]
[321491227,1712239871470,-151.0,0.00049315,120]
[321491228,1712239871479,-151.0,0.00049315,120]
[321491229,1712239871489,-151.0,0.00049315,120]
[321491230,1712239871499,-151.0,0.00049315,120]
[321491231,1712239871511,-151.0,0.00049315,120]
[321491232,1712239871521,-323.357105,0.00049315,120]
[321491233,1712239871531,-323.357105,0.00049315,120]
[321491234,1712239871540,-323.357105,0.00049315,120]
[321491235,1712239871550,-323.357105,0.00049315,120]
[321491236,1712239871560,-151.0,0.00049315,120]
[321491237,1712239871570,-151.0,0.00049315,120]
[321491238,1712239871581,-151.0,0.00049315,120]
[321491239,1712239871591,-151.0,0.00049315,120]
[321491240,1712239871600,-200.701774,0.00049315,120]
[321491241,1712239871611,-200.701774,0.00049315,120]
[321491242,1712239871620,-200.701774,0.00049315,120]
[321491243,1712239871630,-200.701774,0.00049315,120]
[321491244,1712239871640,-151.0,0.00049315,120]
[321491245,1712239871649,-151.0,0.00049315,120]
[321491246,1712239871664,-151.0,0.00049315,120]
[321491247,1712239871674,-151.0,0.00049315,120]
[321491248,1712239871685,-154.740271,0.00049315,120]
[321491249,1712239871695,-364.380167,0.00049315,120]
[321491250,1712239871706,-364.380167,0.00049315,120]
[321491251,1712239871717,-364.380167,0.00049315,120]
[321491252,1712239871727,-151.0,0.00049315,120]
[321491253,1712239871737,-151.0,0.00049315,120]
[321491254,1712239871747,-151.0,0.00049315,120]
[321491255,1712239871761,-151.0,0.00049315,120]
[321491256,1712239871771,-364.380167,0.00049315,120]
[321491257,1712239871780,-364.380167,0.00049315,120]
[321491258,1712239871790,-203.179575,0.00049315,120]
[321491259,1712239871800,-364.380167,0.00049315,120]
[321491260,1712239871810,-182.590521,0.00049315,120]
[321491261,1712239871820,-153.027108,0.00049315,120]
[321491262,1712239871829,-151.0,0.00049315,21]
[321491263,1712239871840,-151.0,0.00049315,21]
[321491264,1712239871850,-218.937618,0.00049315,21]
[321491265,1712239871860,-266.978547,0.00049315,120]
[321491266,1712239871869,-266.978547,0.00049315,120]
[321491267,1712239871880,-162.974525,0.00049315,120]
[321491268,1712239871892,-162.974525,0.00049315,120]
[321491269,1712239871902,-512.864642,0.00049315,120]
[321491270,1712239871912,-151.0,0.00049315,120]
[321491271,1712239871922,-512.864642,0.00049315,120]
[321491272,1712239871932,-151.0,0.00049315,120]
[321491273,1712239871943,-151.0,0.00049315,120]
[321491274,1712239871953,-151.0,0.00049315,120]
[321491275,1712239871963,-151.0,0.00049315,120]
[321491276,1712239871973,-151.0,0.00049315,120]
[321491277,1712239871982,-292.667321,0.00049315,120]
[321491278,1712239871994,-151.0,0.00049315,7]
[321491279,1712239872005,-292.667321,0.00049315,120]
[321491280,1712239872017,-151.0,0.00049315,7]
[321491281,1712239872027,-151.0,0.00049315,120]
[321491282,1712239872037,-192.956329,0.00049315,120]
[321491283,1712239872047,-192.956329,0.00049315,120]
[321491284,1712239872057,-259.233093,0.00049315,7]
[321491285,1712239872067,-259.233093,0.00049315,7]
[321491286,1712239872077,-151.0,0.00049315,120]
[321491287,1712239872088,-151.0,0.00049315,120]
[321491288,1712239872097,-151.0,0.00049315,120]
[321491289,1712239872107,-156.82969,0.00049315,45]
[321491290,1712239872117,-345.766261,0.00049315,120]
[321491291,1712239872126,-287.421932,0.00049315,14]
[321491292,1712239872136,-345.766261,0.00049315,120]
[321491293,1712239872146,-287.421932,0.00049315,14]
[321491294,1712239872156,-151.0,0.00049315,120]
[321491295,1712239872166,-348.279012,0.00049315,120]
[321491296,1712239872175,-151.0,0.00049315,120]
[321491297,1712239872185,-348.279012,0.00049315,120]
[321491298,1712239872196,-198.86149,0.00049315,120]
[321491299,1712239872206,-198.86149,0.00049315,120]
[321491300,1712239872216,-151.0,0.00049315,120]
[321491301,1712239872442,-151.778016,0.00049315,7]
[321491302,1712239872483,-384.141422,0.00049315,120]
[321491303,1712239872493,-151.0,0.00049315,60]
[321491304,1712239872504,-151.0,0.00049315,120]
[321491305,1712239872515,-151.0,0.00049315,120]
[321491306,1712239872525,-151.0,0.00049315,120]
[321491307,1712239872535,-152.94691,0.00049315,120]
[321491308,1712239872544,-151.0,0.00049315,120]
[321491309,1712239872554,-151.0,0.00049315,120]
[321491310,1712239872563,-151.0,0.00049315,120]
[321491311,1712239872573,-151.0,0.00049315,120]
[321491312,1712239872583,-151.0,0.00049315,120]
[321491313,1712239872592,-151.0,0.00049315,120]
[321491314,1712239872601,-151.0,0.00049315,120]
[321491315,1712239872611,-151.0,0.00049315,120]
[321491316,1712239872620,-151.0,0.00049315,120]
[321491317,1712239872630,-151.0,0.00049315,120]
[321491318,1712239872640,-151.0,0.00049315,120]
[321491319,1712239872649,-151.0,0.00049315,120]
[321491320,1712239872662,-151.0,0.00049315,120]
[321491321,1712239872672,-586.981877,0.00049315,120]
[321491322,1712239872682,-667.499652,0.00049315,120]
[321491323,1712239872692,-667.499652,0.00049315,120]
[321491324,1712239872702,-151.0,0.00049315,120]
[321491325,1712239872712,-586.981877,0.00049315,120]
[321491326,1712239872722,-178.509195,0.00049315,120]
[321491327,1712239872731,-230.324354,0.00049315,120]
[321491328,1712239872742,-151.0,0.00049315,120]
[321491329,1712239872754,-151.0,0.00049315,7]
[321491330,1712239872767,-230.324354,0.00049315,120]
[321491331,1712239872777,-151.0,0.00049315,7]
[321491332,1712239872788,-200.524955,0.00049315,120]
[321491333,1712239872798,-151.0,0.00049315,60]
[321491334,1712239872807,-296.183246,0.00049315,120]
[321491335,1712239872817,-856.20316,0.00049315,30]
[321491336,1712239872826,-296.183246,0.00049315,120]
[321491337,1712239872835,-237.001021,0.00049315,30]
[321491338,1712239872847,-856.20316,0.00049315,30]
[321491339,1712239872857,-237.001021,0.00049315,30]
[321491340,1712239872867,-151.0,0.00049315,120]
[321491341,1712239872876,-151.0,0.00049315,120]
[321491342,1712239872886,-151.0,0.00049315,30]
[321491343,1712239872896,-176.743414,0.00049315,120]
[321491344,1712239872906,-201.325026,0.00049315,120]
[321491345,1712239872916,-151.0,0.00049315,120]
[321491346,1712239872926,-201.325026,0.00049315,120]
[321491347,1712239872936,-151.0,0.00049315,120]
[321491348,1712239872946,-151.0,0.00049315,120]
[321491349,1712239872957,-758.089528,0.00049315,30]
[321491350,1712239872968,-758.089528,0.00049315,30]
[321491351,1712239872980,-151.0,0.00049315,120]
[321491352,1712239872992,-461.879019,0.00049315,120]
[321491353,1712239873014,-151.0,0.00049315,120]
[321491354,1712239873026,-461.879019,0.00049315,120]
[321491355,1712239873040,-151.0,0.00049315,120]
[321491356,1712239873053,-151.0,0.00049315,120]
[321491357,1712239873067,-151.0,0.00049315,120]
[321491358,1712239873081,-151.0,0.00049315,120]
[321491359,1712239873094,-151.0,0.00049315,120]
[321491360,1712239873108,-150.0,0.00049315,2]
[321491361,1712239873120,-2496.35,0.00049336,2]
[321491362,1712239873132,-218.74842781,0.00049347,30]
[321491363,1712239873145,-151.0,0.00049396,120]
[321491364,1712239873157,-151.0,0.00049396,120]
[321491365,1712239873169,-151.0,0.00049396,120]
[321491366,1712239873181,-151.0,0.00049396,120]
[321491367,1712239873193,-151.0,0.00049396,120]
[321491368,1712239873205,-323.357105,0.00049396,120]
[321491369,1712239873217,-323.357105,0.00049396,120]
[321491370,1712239873228,-151.0,0.00049396,120]
[321491371,1712239873240,-153.664535,0.00049396,120]
[321491372,1712239873251,-200.701774,0.00049396,120]
[321491373,1712239873263,-200.701774,0.00049396,120]
[321491374,1712239873274,-83666.56783409,0.00049396,10]
[321491375,1712239873285,-218.74842781,0.00049402,30]
[321491376,1712239873295,-157.040415,0.00049404,99]
[321491377,1712239873312,-151.16400739,0.00049432,30]
[321491378,1712239873323,-152.40874845,0.00049441,30]
[321491379,1712239873333,-3000.0,0.00049452,120]
[321491380,1712239873343,-2563.1679863,0.00049464,2]
[321491381,1712239873353,-3662.65603,0.00049488,30]
[321491382,1712239873363,-78676.47390138,0.00049498,2]
[321491383,1712239873374,-151.0,0.00049498,120]
[321491384,1712239873385,-151.0,0.00049498,120]
[321491385,1712239873394,-151.0,0.00049498,120]
[321491386,1712239873404,-183.958589,0.00049498,120]
[321491387,1712239873413,-1000.0,0.000495,120]
[321491388,1712239873423,-1012.07157059,0.000495,120]
[321491389,1712239873434,-150.0,0.000495,10]
[321491390,1712239873444,-1570.5336388,0.00049555,2]
[321491391,1712239873454,-15185.6075393,0.00049555,2]
[321491392,1712239873463,-8108.2500676,0.00049555,2]
[321491393,1712239873473,-1278.4854576,0.00049555,2]
[321491394,1712239873485,-1600.0,0.00049578,90]
[321491395,1712239873494,-1000.0,0.00049578,90]
[321491396,1712239873504,-1008.56,0.00049585,2]
[321491397,1712239873515,-880.18,0.00049589,120]
[321491398,1712239873525,-383.04923221,0.00049589,120]
[321491399,1712239873534,-500.0,0.00049589,120]
[321491400,1712239873543,-500.0,0.00049589,120]
[321491401,1712239873553,-500.0,0.00049589,120]
[321491402,1712239873563,-509.03845432,0.00049589,120]
[321491403,1712239873573,-500.0,0.00049589,120]
[321491404,1712239873583,-272.11709393,0.00049589,120]
[321491405,1712239873592,-500.0,0.00049589,120]
[321491406,1712239873601,-500.0,0.00049589,120]
[321491407,1712239873611,-508.41224451,0.00049589,120]
[321491408,1712239873620,-500.0,0.00049589,120]
[321491409,1712239873630,-512.13631567,0.00049589,120]
[321491410,1712239873639,-500.0,0.00049589,120]
[321491411,1712239873649,-500.0,0.00049589,120]
[321491412,1712239873660,-500.0,0.00049589,120]
[321491413,1712239873670,-500.0,0.00049589,120]
[321491414,1712239873681,-504.92097988,0.00049589,120]
[321491415,1712239873692,-500.0,0.00049589,120]
[321491416,1712239873702,-500.0,0.00049589,120]
[321491417,1712239873711,-549.47958175,0.00049589,120]
[321491418,1712239873721,-529.8909442,0.00049589,120]
[321491419,1712239873731,-514.25786644,0.00049589,120]
[321491420,1712239873741,-500.0,0.00049589,120]
[321491421,1712239873751,-511.26510214,0.00049589,120]
[321491422,1712239873763,-500.0,0.00049589,120]
[321491423,1712239873773,-500.0,0.00049589,120]
[321491424,1712239873783,-512.31552516,0.00049589,120]
[321491425,1712239873793,-500.0,0.00049589,120]
[321491426,1712239873802,-511.47029009,0.00049589,120]
[321491427,1712239873812,-508.2810386,0.00049589,120]
[321491428,1712239873823,-507.7247985,0.00049589,120]
[321491429,1712239873833,-500.0,0.00049589,120]
[321491430,1712239873842,-511.17307466,0.00049589,120]
[321491431,1712239873852,-225.00274697,0.00049589,120]
[321491432,1712239873861,-500.0,0.00049589,120]
[321491433,1712239873871,-500.0,0.00049589,120]
[321491434,1712239873880,-517.68052614,0.00049589,120]
[321491435,1712239873890,-500.0,0.00049589,120]
[321491436,1712239873913,-500.0,0.00049589,120]
[321491437,1712239873959,-554.41690692,0.00049589,120]
[321491438,1712239873969,-500.0,0.00049589,120]
[321491439,1712239873979,-553.32,0.00049589,120]
[321491440,1712239873989,-786.2,0.00049589,120]
[321491441,1712239873998,-500.0,0.00049589,120]
[321491442,1712239874010,-200.0,0.00049589,10]
[321491443,1712239874021,-791.27,0.00049589,120]
[321491444,1712239874032,-500.0,0.00049589,2]
[321491445,1712239874041,-500.0,0.00049589,120]
[321491446,1712239874051,-538.8807928,0.00049589,120]
[321491447,1712239874060,-577.38987168,0.00049589,120]
[321491448,1712239874070,-509.52060257,0.00049589,120]
[321491449,1712239874079,-500.0,0.00049589,120]
[321491450,1712239874089,-500.0,0.00049589,120]
[321491451,1712239874098,-500.0,0.00049589,120]
[321491452,1712239874108,-619.73,0.00049589,120]
[321491453,1712239874118,-528.26267007,0.00049589,120]
[321491454,1712239874128,-516.22799519,0.00049589,120]
[321491455,1712239874138,-500.0,0.00049589,120]
[321491456,1712239874147,-500.0,0.00049589,120]
[321491457,1712239874157,-1016.66,0.00049589,120]
[321491458,1712239874166,-500.0,0.00049589,120]
[321491459,1712239874176,-625.71,0.00049589,120]
[321491460,1712239874185,-884.44,0.00049589,120]
[321491461,1712239874195,-848.11,0.00049589,120]
[321491462,1712239874205,-500.0,0.00049589,120]
[321491463,1712239874214,-516.66569155,0.00049589,120]
[321491464,1712239874223,-500.0,0.00049589,120]
[321491465,1712239874233,-659.76,0.00049589,120]
[321491466,1712239874242,-518.58514599,0.00049589,120]
[321491467,1712239874252,-500.0,0.00049589,120]
[321491468,1712239874265,-524.81130621,0.00049589,120]
[321491469,1712239874275,-531.32243229,0.00049589,120]
[321491470,1712239874284,-500.0,0.00049589,120]
[321491471,1712239874294,-500.0,0.00049589,120]
[321491472,1712239874303,-500.0,0.00049589,120]
[321491473,1712239874313,-500.0,0.00049589,120]
[321491474,1712239874323,-500.0,0.00049589,120]
[321491475,1712239874333,-500.0,0.00049589,2]
[321491476,1712239874348,-500.0,0.00049589,120]
[321491477,1712239874358,-500.0,0.00049589,120]
[321491478,1712239874370,-500.0,0.00049589,120]
[321491479,1712239874380,-522.22346289,0.00049589,120]
[321491480,1712239874390,-500.0,0.00049589,120]
[321491481,1712239874400,-500.0,0.00049589,120]
[321491482,1712239874409,-500.0,0.00049589,120]
[321491483,1712239874419,-500.0,0.00049589,120]
[321491484,1712239874429,-550.50930173,0.00049589,120]